Workbook

Sheet Sheet1
A2: INFORME 8: BALANCE DE COMPROBACIÓN
A4: Periodo de Reporte:
A5: Cuenta Contable 1/. | B5: Código (plan contable) 2/. | C5: Código (PCR) 3/. | D5: Saldo al final de periodo

Sheet final en miles
A1: AMERICA MOVIL PERU S.A.C
A2: INFORME 8: BALANCE DE COMPROBACIÓN
A4: Periodo de reporte: Enero a Diciembre 2016
A6: Expresado en Miles de Nuevos Soles | B6: Código (plan contable) PCGE | C6: Código (PCR) 3/. | D6: Estado de Situación Financiera de Contabilidad Separada
A7: M.N: CAJA - RECARGA | B7: 1010101000 | C7: 10 | D7: 0.035
A8: M.N: CAJA - TIENDA 1: LAS BEGONIAS | B8: 1010101001 | C8: 10 | D8: 77.50088
A9: M.N: CAJA - TIENDA 2: C.C.RISSO | B9: 1010101011 | C9: 10 | D9: 43.79865
A10: M.N: CAJA - TIENDA 3: LARCO | B10: 1010101021 | C10: 10 | D10: 38.54084
A11: M.N: CAJA - TIENDA 4: P.SAN MIGUEL | B11: 1010101031 | C11: 10 | D11: 46.28686
A12: M.N: CAJA - TIENDA 6: JR. DE LA UNION | B12: 1010101051 | C12: 10 | D12: 0.409
A13: CAC JR. DE LA UNIÓN I | B13: 1010101053 | C13: 10 | D13: 51.91815
A14: M.N: CAJA - TIENDA :MEGAPLAZA CONO NORTE(LIMA) | B14: 1010101071 | C14: 10 | D14: 107.05193
A15: M.N: - CAC LIMA NORTE | B15: 1010101072 | C15: 10 | D15: 67.95742
A16: M.N: CAJA - TIENDA : PRIMAVERA(LIMA) | B16: 1010101081 | C16: 10 | D16: 51.14706
A17: M.N: CAJA - TIENDA : CHICLAYO | B17: 1010101091 | C17: 10 | D17: 59.2155
A18: CAJA CELLPOWER EFECTIVO | B18: 1010101143 | C18: 10 | D18: 1.58752
A19: CAC LA CULTURA (1421) EFECTIVO | B19: 1010101174 | C19: 10 | D19: 13.98152
A20: M.N: CAJA - TIENDA : LA MOLINA(LIMA) | B20: 1010101201 | C20: 10 | D20: 16.79982
A21: CAJA HUANUCO | B21: 1010102033 | C21: 10 | D21: 37.58835
A22: CAJA HUANUCO CHEQ | B22: 1010102034 | C22: 10 | D22: 0.65699
A23: MN :CAC HUARAZ | B23: 1010102035 | C23: 10 | D23: 48.9157
A24: MN :CAC HUARAZ CHEQ | B24: 1010102036 | C24: 10 | D24: 0.43498
A25: MN :CAC CAJAMARCA II | B25: 1010102037 | C25: 10 | D25: 13.73475
A26: MN :CAC BELLAVISTA | B26: 1010102039 | C26: 10 | D26: 110.3896
A27: MN :CAC BELLAVISTA CHQ | B27: 1010102040 | C27: 10 | D27: 38.85761
A28: MN :CAC HUANCAYO | B28: 1010102043 | C28: 10 | D28: 91.584
A29: MN :CAC HUANCAYO CHQ | B29: 1010102044 | C29: 10 | D29: 0.095
A30: MN :CAC ICA | B30: 1010102045 | C30: 10 | D30: 8.6647
A31: MN :CAC ILO | B31: 1010102047 | C31: 10 | D31: 93.0881
A32: MN :CAC ILO CHQ | B32: 1010102048 | C32: 10 | D32: 0.99007
A33: MN :CAC ATOCONGO | B33: 1010102049 | C33: 10 | D33: 32.22895
A34: MN :CAC ATOCONGO CHQ | B34: 1010102050 | C34: 10 | D34: 5.05575
A35: CAC CENTRO CÍVICO (OF. 1198). EFECTIVO | B35: 1010102055 | C35: 10 | D35: 116.66065
A36: CAC CENTRO CÍVICO (OF. 1198). CHEQUE | B36: 1010102056 | C36: 10 | D36: 221.98885
A37: CAC TUMBES (OF. 1203). EFECTIVO | B37: 1010102057 | C37: 10 | D37: 32.97457
A38: CAC SJL - ZARATE (OF. 1211). EFECTIVO | B38: 1010102060 | C38: 10 | D38: 104.86901
A39: CAC CHICLAYO II (OF. 1215). EFECTIVO | B39: 1010102067 | C39: 10 | D39: 54.31705
A40: CAC CHIMBOTE (OF. 1218). EFECTIVO | B40: 1010102069 | C40: 10 | D40: 94.8686
A41: CAC PUCALLPA (OF. 1214). EFECTIVO | B41: 1010102070 | C41: 10 | D41: 17.0222
A42: CAC ANGAMOS (OF. 1209). EFECTIVO | B42: 1010102075 | C42: 10 | D42: 32.00705
A43: CAC MAGDALENA (OF. 1210). EFECTIVO | B43: 1010102079 | C43: 10 | D43: -0.0448
A44: AMC ANGAMOS (OF. 1223). EFECTIVO | B44: 1010102080 | C44: 10 | D44: -0.024
A45: CAC LAMBRAMANI (OF. 1249). EFECTIVO | B45: 1010102083 | C45: 10 | D45: 95.19563
A46: CAC OPEN PLAZA PIURA (OF.1250) EFECTIVO | B46: 1010102084 | C46: 10 | D46: 52.93336
A47: CAC PORRONGOCHE (OF. 1251) EFECTIVO | B47: 1010102085 | C47: 10 | D47: 61.2394
A48: CAC SAN ANDRES CUZCO (OF. 1252) EFECTIVO | B48: 1010102086 | C48: 10 | D48: 80.794
A49: CAC JULIACA REAL PLAZA (OF. 1265). EFECTIVO | B49: 1010102087 | C49: 10 | D49: 49.24904
A50: CAC TORRE SAN ISIDRO (OF.1289) EFECTIVO | B50: 1010102090 | C50: 10 | D50: -0.06345
A51: CAJA SMART CENTER HUANCAYO EFECTIVO | B51: 1010102094 | C51: 10 | D51: 11.8341
A52: CAJA SMART CENTER CHICLAYO EFECTIVO | B52: 1010102096 | C52: 10 | D52: 22.8115
A53: CAJA SMART CENTER MEGA PZA EFECTIVO | B53: 1010102097 | C53: 10 | D53: -0.0435
A54: CAJA SMART CENTER PZA DE LA LUNA EFECTIVO | B54: 1010102098 | C54: 10 | D54: -0.395
A55: CAJA SMART CENTER ASIA EFECTIVO | B55: 1010102099 | C55: 10 | D55: -0.252
A56: CAC PTO MALDONADO OFICINA 1286 EFECTIVO | B56: 1010102100 | C56: 10 | D56: 34.92704
A57: CAC JOCKEY PLAZA II EFECTIVO | B57: 1010102103 | C57: 10 | D57: 105.58231
A58: CAC SMART PLAZA LIMA NORTE EFECTIVO OF 1304 | B58: 1010102104 | C58: 10 | D58: 10.2349
A59: CAC CHIMBOTE FDO. SENC. OF 1218 | B59: 1010102107 | C59: 10 | D59: 1
A60: CAC PORRONGOCHE FDO. SENC. OF 1251 | B60: 1010102108 | C60: 10 | D60: 3
A61: CAC SAN ANDRES CUSCO FDO. SENC. OF 1252 | B61: 1010102109 | C61: 10 | D61: 1.2
A62: CAC JULIACA REAL PLAZA FDO. SENC. OF 1265 | B62: 1010102110 | C62: 10 | D62: 2
A63: CAC TUMBES FDO. SENC. OF 1203 | B63: 1010102113 | C63: 10 | D63: 2
A64: CAC TORRE SAN ISIDRO FDO. SENC. OF 1289 | B64: 1010102114 | C64: 10 | D64: 0.8
A65: CAC HUACHO FONDO SENC. OF 1310 | B65: 1010102120 | C65: 10 | D65: 1.5
A66: CAC HUACHO EFECTIVO OF 1310 | B66: 1010102123 | C66: 10 | D66: 28.49166
A67: CAC STA. CLARA FONDO SENC. OF 1311 | B67: 1010102124 | C67: 10 | D67: 0.8
A68: CAC STA. CLARA EFECTIVO OF 1311 | B68: 1010102125 | C68: 10 | D68: 36.1602
A69: SMART CENTER SANTA ANITA (OF. 1412) EFECTIVO | B69: 1010102126 | C69: 10 | D69: -0.136
A70: CAC VILLA EL SALVADOR (OF. 1415). EFECTIVO | B70: 1010102128 | C70: 10 | D70: 16.58517
A71: CAC VILLA EL SALVADOR (OF. 1415). FDO. SENCILLO | B71: 1010102129 | C71: 10 | D71: 1
A72: CAC SANTA ANITA (OF. 1413). EFECTIVO | B72: 1010102130 | C72: 10 | D72: 99.4036
A73: CAC SANTA ANITA (OF. 1413) FDO. SENCILLO | B73: 1010102133 | C73: 10 | D73: 1.5
A74: CAC SAN BORJA (1428) EFECTIVO | B74: 1010102140 | C74: 10 | D74: 30.84679
A75: SMART ICA (1429) EFECTIVO | B75: 1010102146 | C75: 10 | D75: 4.41905
A76: SMART ICA (1429) FONDO DE SENCILLO | B76: 1010102147 | C76: 10 | D76: 0.6
A77: ATM VILLA EL SALVADOR FONDO DE SENCILLO | B77: 1010102149 | C77: 10 | D77: 30
A78: ATM SAN JUAN DE LURIGANCHO FONDO DE SENCILLO | B78: 1010102153 | C78: 10 | D78: 60
A79: ATM TORRE SAN ISIDRO FONDO DE SENCILLO | B79: 1010102155 | C79: 10 | D79: 30
A80: ATM MINKA FONDO DE SENCILLO | B80: 1010102157 | C80: 10 | D80: 30
A81: ATM UNICACHI FONDO DE SENCILLO | B81: 1010102159 | C81: 10 | D81: 30
A82: ATM PIURA FONDO DE SENCILLO | B82: 1010102163 | C82: 10 | D82: 30.06
A83: ATM TRUJILLO II FONDO DE SENCILLO | B83: 1010102165 | C83: 10 | D83: 30
A84: ATM HUARAZ FONDO DE SENCILLO | B84: 1010102167 | C84: 10 | D84: 30
A85: ATM HUACHO FONDO DE SENCILLO | B85: 1010102169 | C85: 10 | D85: 30
A86: ATM PUCALLPA FONDO DE SENCILLO | B86: 1010102173 | C86: 10 | D86: 30
A87: ATM HUANCAYO FONDO DE SENCILLO | B87: 1010102175 | C87: 10 | D87: 30
A88: ATM PUERTO MALDONADO FONDO DE SENCILLO | B88: 1010102177 | C88: 10 | D88: 30
A89: ATM TACNA FONDO DE SENCILLO | B89: 1010102179 | C89: 10 | D89: 30
A90: ATM PLAZA NORTE II FONDO DE SENCILLO | B90: 1010102183 | C90: 10 | D90: 30
A91: ATM BELLAVISTA FONDO DE SENCILLO | B91: 1010102185 | C91: 10 | D91: 30
A92: ATM PLAZA NORTE I FONDO DE SENCILLO | B92: 1010102187 | C92: 10 | D92: 30
A93: ATM IQUITOS FONDO DE SENCILLO | B93: 1010102189 | C93: 10 | D93: 30
A94: CAC CHINCHA (1433) EFECTIVO | B94: 1010102190 | C94: 10 | D94: 13.49784
A95: ATM SAN BORJA FONDO DE SENCILLO | B95: 1010102193 | C95: 10 | D95: 30
A96: ATM CHINCHA FONDO DE SENCILLO | B96: 1010102195 | C96: 10 | D96: 30
A97: ATM HUANUCO FONDO DE SENCILLO | B97: 1010102197 | C97: 10 | D97: 30
A98: SMC PLAZA LIMA SUR (Of. 1419) | B98: 1010102198 | C98: 10 | D98: 0.011
A99: FONDOS FIJOS #1 | B99: 1010102649 | C99: 10 | D99: 0.5
A100: M.N: CAJA - TIENDA 1: SENCILLO LAS BEGONIAS | B100: 1010103001 | C100: 10 | D100: 3
A101: M.N: CAJA - TIENDA 2:SENCILLO LINCE | B101: 1010103011 | C101: 10 | D101: 1.2
A102: M.N: CAJA - TIENDA 3: SENCILLO LARCO | B102: 1010103021 | C102: 10 | D102: 2
A103: M.N: CAJA - TIENDA 4: P. SENCILLO SAN MIGUEL | B103: 1010103031 | C103: 10 | D103: 2.4
A104: M.N: CAJA - C.A.C CHORRILLOS | B104: 1010103061 | C104: 10 | D104: 17.11578
A105: M.N: CAJA - FONDO DE SENCILLO TACNA | B105: 1010103070 | C105: 10 | D105: 2
A106: M.N: CAJA - TIENDA :SENCILLO MEGAPLAZA NORTE(LIMA) | B106: 1010103071 | C106: 10 | D106: 2.5
A107: M.N: CAJA - FONDO DE SENCILLO PIURA | B107: 1010103072 | C107: 10 | D107: 2
A108: M.N: CAJA - FONDO DE SENCILLO CAJAMARCA | B108: 1010103073 | C108: 10 | D108: 0.8
A109: M.N: CAJA - FONDO DE SENCILLO TRUJILLO II | B109: 1010103074 | C109: 10 | D109: 2
A110: M.N: CAJA - FONDO DE SENCILLO MINKA | B110: 1010103075 | C110: 10 | D110: 1
A111: M.N: CAJA - FONDO DE SENCILLO TRUJILLO III (1043) | B111: 1010103076 | C111: 10 | D111: 3
A112: M.N: CAJA - FONDO DE SENCILLO CAJAMARCA II (1170) | B112: 1010103077 | C112: 10 | D112: 1
A113: M.N: CAJA - FONDO DE SENCILLO CENTRO CIVICO (1198) | B113: 1010103078 | C113: 10 | D113: 2.8
A114: M.N: CAJA - FONDO DE SENCILLO ANGAMOS (1209) | B114: 1010103079 | C114: 10 | D114: 2
A115: M.N: CAJA - FONDO DE SENCILLO LAMBRAMANI (1249) | B115: 1010103080 | C115: 10 | D115: 2
A116: M.N: CAJA - TIENDA :SENCILLO PRIMAVERA(LIMA) | B116: 1010103081 | C116: 10 | D116: 2.3
A117: M.N: CAJA - FONDO DE SENCILLO SMART ANGAMOS (1223) | B117: 1010103082 | C117: 10 | D117: 0.5
A118: M.N: CAJA - FONDO SENC.CAC OPEN PLAZA PIURA (1250) | B118: 1010103083 | C118: 10 | D118: 1.6
A119: M.N: CAJA - FONDO SENC.CAC CHICLAYO II OFIC(1215) | B119: 1010103089 | C119: 10 | D119: 2
A120: M.N: FONDO SENC.CAC MAGDALENA OFIC(1210) | B120: 1010103090 | C120: 10 | D120: 0.8
A121: M.N: CAJA - TIENDA :SENCILLO CHICLAYO | B121: 1010103091 | C121: 10 | D121: 1.6
A122: M.N: FONDO SENC.CAC ZARATE OFIC(1211) | B122: 1010103092 | C122: 10 | D122: 1.6
A123: M.N: FONDO SENC.CAC PUCALLPA OFIC(1214) | B123: 1010103094 | C123: 10 | D123: 0.8
A124: ATM BEGONIAS FONDO DE SENCILLO | B124: 1010103096 | C124: 10 | D124: 50
A125: M.N: CAJA - TIENDA : SENCILLO LA MOLINA(LIMA) | B125: 1010103201 | C125: 10 | D125: 0.6
A126: CAJA SMART CENTER HUANCAYO FONDO SENC. | B126: 1010103203 | C126: 10 | D126: 0.6
A127: CAJA SMART CENTER CAJAMARCA FONDO SENC. | B127: 1010103204 | C127: 10 | D127: 0.4
A128: CAJA SMART CENTER CHICLAYO FONDO SENC. | B128: 1010103205 | C128: 10 | D128: 0.6
A129: CAJA SMART CENTER MEGA PZA FONDO SENC. | B129: 1010103206 | C129: 10 | D129: 0.6
A130: CAC PTO MALDONADO OFICINA 1286 FONDO SENC. | B130: 1010103209 | C130: 10 | D130: 1.2
A131: CAC JOCKEY PLAZA II FONDO SENC. | B131: 1010103211 | C131: 10 | D131: 1.5
A132: CAC SMART PLAZA LIMA NORTE FONDO SENC.OF 1304 | B132: 1010103212 | C132: 10 | D132: 0.6
A133: CAC UNICACHI | B133: 1010103301 | C133: 10 | D133: 52.04666
A134: FONDO BOVEDA HERMES | B134: 1010104030 | C134: 10 | D134: 1557.5
A135: FONDO BOVEDA PROSEGUR | B135: 1010104031 | C135: 10 | D135: 420
A136: ATM JOCKEY PLAZA FONDO DE SENCILLO | B136: 1010105001 | C136: 10 | D136: 80
A137: ATM PORONGOCHE FONDO DE SENCILLO | B137: 1010105005 | C137: 10 | D137: 30
A138: ATM LAMBRAMANI FONDO DE SENCILLO | B138: 1010105007 | C138: 10 | D138: 30
A139: ATM AREQUIPA FONDO DE SENCILLO | B139: 1010105009 | C139: 10 | D139: 30
A140: ATM CAJAMARCA I FONDO DE SENCILLO | B140: 1010105011 | C140: 10 | D140: 30
A141: ATM ICA (35) FONDO DE SENCILLO | B141: 1010105016 | C141: 10 | D141: 20
A142: ATM SANTA CLARA (33) FONDO DE SENCILLO | B142: 1010105018 | C142: 10 | D142: 25
A143: CHICLAYO II (30) FONDO DE SENCILLO | B143: 1010105020 | C143: 10 | D143: 25
A144: ATOCONGO (34) FONDO DE SENCILLO | B144: 1010105022 | C144: 10 | D144: 27.5
A145: ATM ATOCONGO (34) EFECTIVO | B145: 1010105023 | C145: 10 | D145: 0.39
A146: CAC GAMARRA (1447) EFECTIVO | B146: 1010105024 | C146: 10 | D146: 94.28233
A147: CAC GAMARRA (1447) FONDO DE SENCILLO | B147: 1010105025 | C147: 10 | D147: 1.4
A148: ATM STA ANITA (27) FONDO DE SENCILLO | B148: 1010105029 | C148: 10 | D148: 25
A149: ATM CUZCO-SAN ANDRES FONDO DE SENCILLO | B149: 1010105039 | C149: 10 | D149: 25
A150: CAV PIURA EFECTIVO | B150: 1010105397 | C150: 10 | D150: 18.9379
A151: CAV PIURA CHEQUE | B151: 1010105401 | C151: 10 | D151: 0.199
A152: CAV ABANCAY EFECTIVO | B152: 1010105567 | C152: 10 | D152: 70.0903
A153: CAC AREQUIPA CHEQUES | B153: 1010107001 | C153: 10 | D153: 383.07013
A154: CAC LARCO CHEQUES | B154: 1010107002 | C154: 10 | D154: 17.89013
A155: CAC BEGONIAS CHEQUES | B155: 1010107003 | C155: 10 | D155: 1299.03671
A156: CAC LINCE CHEQUES | B156: 1010107004 | C156: 10 | D156: 736.07427
A157: CAC SN MIGUEL CHEQUES | B157: 1010107005 | C157: 10 | D157: 76.57217
A158: CAC PRIMAVERA CHEQUES | B158: 1010107008 | C158: 10 | D158: 283.35256
A159: CAC TRUJILLO CHEQUES | B159: 1010107009 | C159: 10 | D159: 8.94387
A160: CAC CHICLAYO CHEQUES | B160: 1010107010 | C160: 10 | D160: 2.86761
A161: CAC LA MOLINA CHEQUES | B161: 1010107011 | C161: 10 | D161: 10.27596
A162: CAC MEGAPLAZA CHEQUES | B162: 1010107012 | C162: 10 | D162: 10.31839
A163: CAC CHORRILLOS CHEQUES | B163: 1010107013 | C163: 10 | D163: 36.7472
A164: CAC CUZCO CHEQUES | B164: 1010107014 | C164: 10 | D164: 3.21145
A165: CAC PIURA CHEQUES | B165: 1010107016 | C165: 10 | D165: 31.87198
A166: CAC CAJAMARCA CHEQUES | B166: 1010107018 | C166: 10 | D166: 0.69393
A167: CAC JULIACA CHEQUES | B167: 1010107021 | C167: 10 | D167: 0.21102
A168: CAC MINKA CHEQUES | B168: 1010107025 | C168: 10 | D168: 9.46315
A169: CAC TARAPOTO CHEQUES | B169: 1010107026 | C169: 10 | D169: 1.44437
A170: CAC UNICACHI CHQ | B170: 1010107029 | C170: 10 | D170: 16.10524
A171: M.N: - CAC LIMA NORTE CHEQUE | B171: 1010107032 | C171: 10 | D171: 15.90593
A172: CAC SJL - ZARATE (OF. 1211). CHEQUE | B172: 1010107034 | C172: 10 | D172: 4.64943
A173: CAC CHICLAYO II (OF. 1215). CHEQUE | B173: 1010107041 | C173: 10 | D173: 0.59185
A174: CAC PUCALLPA (OF. 1214). CHEQUE | B174: 1010107044 | C174: 10 | D174: 0.77798
A175: CAC ANGAMOS (OF. 1209). CHEQUE | B175: 1010107049 | C175: 10 | D175: 63.15618
A176: CAC OPEN PLAZA PIURA (OF.1250) CHEQUE | B176: 1010107052 | C176: 10 | D176: 20.73493
A177: CAC SAN ANDRES CUZCO (OF. 1252) CHEQUE | B177: 1010107054 | C177: 10 | D177: 83.4291
A178: CAC JULIACA REAL PLAZA (OF. 1265). CHEQUE | B178: 1010107055 | C178: 10 | D178: 2.07798
A179: CAC JOCKEY PLAZA II CHEQUE | B179: 1010107067 | C179: 10 | D179: 237.53224
A180: CAC STA. CLARA CHEQUE OF 1311 | B180: 1010107070 | C180: 10 | D180: 1.10671
A181: CAC VILLA EL SALVADOR (OF. 1415). CHEQUE | B181: 1010107072 | C181: 10 | D181: 8.57349
A182: CAC SANTA ANITA (OF. 1413) CHEQUE | B182: 1010107073 | C182: 10 | D182: 28.67677
A183: CAC SAN BORJA (OF. 1428) CHEQUE | B183: 1010107077 | C183: 10 | D183: 198.10003
A184: CAC CHINCHA (OF. 1433) CHEQUE | B184: 1010107080 | C184: 10 | D184: 4.24731
A185: VME FONDO FIJO | B185: 1010109999 | C185: 10 | D185: 2.6523
A186: M.N: CAJA - TIENDA TRUJILLO: JR.PIZARRO 500-502 | B186: 1010201001 | C186: 10 | D186: 99.77142
A187: M.N: CAJA - TIENDA TRUJILLO II | B187: 1010201003 | C187: 10 | D187: 86.70146
A188: M.N: CAJA - TIENDA TRUJILLO IIL | B188: 1010201004 | C188: 10 | D188: 93.11628
A189: M.N: CAJA - TIENDA TRUJILLO: SENCILLO TRUJILLO | B189: 1010203001 | C189: 10 | D189: 2.8
A190: M.N: CAJA - TIENDA ARQ 1: CALLE LA MERCED 110 | B190: 1010301001 | C190: 10 | D190: 65.51851
A191: M.N: SMART CAC PUNO | B191: 1010301101 | C191: 10 | D191: 30.5852
A192: M.N: SMART FDO SENCILLO PUNO | B192: 1010301201 | C192: 10 | D192: 1.5
A193: M.N: CAC MINKA | B193: 1010302001 | C193: 10 | D193: 120.32259
A194: M.N: CAC TARAPOTO | B194: 1010302002 | C194: 10 | D194: 25.8684
A195: M.N: CAJA - TIENDA ARQ 1: SENCILLO AREQUIPA | B195: 1010303001 | C195: 10 | D195: 4
A196: M.N: CAJA - TIENDA ARQ 1: SENCILLO CHORRILLO | B196: 1010303061 | C196: 10 | D196: 2.1
A197: M.N: CAJA - TIENDA CUZCO | B197: 1010304001 | C197: 10 | D197: 45.23043
A198: M.N: CAJA - TIENDA PIURA | B198: 1010305001 | C198: 10 | D198: 18.48793
A199: C.A.C TACNA | B199: 1010306001 | C199: 10 | D199: 85.40026
A200: SMART CAC AYACUCHO | B200: 1010306002 | C200: 10 | D200: 27.30688
A201: SMART CAC FDO DE SENCILLO AYACUCHO | B201: 1010306102 | C201: 10 | D201: 0.8
A202: C.A.C CAJAMARCA | B202: 1010307001 | C202: 10 | D202: 24.5589
... 1775 more rows
